fUSD/lending_fUSD_20240403
["ID","MTS","AMOUNT","RATE_DAILY","PERIOD"]
[321383064,1712109193101,-1309579.62797719,0.00025,2]
[321383065,1712109233477,6186.12616613,0.00042216,120]
[321383066,1712109273308,162.41652671,0.00042216,30]
[321383067,1712109277756,186.94570264,0.0002736,120]
[321383068,1712109314972,216.19377704,0.00024999,10]
[321383069,1712109460498,150.0,0.00041982,30]
[321383070,1712109516940,245.82906916,0.000249,9]
[321383072,1712109626442,1157.62591228,0.00024874,4]
[321383073,1712109631988,550.0,0.00025,3]
[321383074,1712109705695,1463.23766885,0.00022408,5]
[321383075,1712109926889,155.436705,0.00027945,14]
[321383076,1712109928852,155.436705,0.00028767,14]
[321383077,1712109930763,155.436705,0.00029589,14]
[321383078,1712110027179,-304.19719016,0.00020589,2]
[321383079,1712110027199,-706.77345747,0.00020589,2]
[321383080,1712110027219,-155.0,0.0002059,2]
[321383081,1712110027238,-1224.20975883,0.0002059,2]
[321383082,1712110148119,-350.0,0.00020276,2]
[321383083,1712110148140,-764.34461,0.00020277,2]
[321383084,1712110148160,-615.67123681,0.00020378,2]
[321383085,1712110148181,-150.0,0.00020378,2]
[321383086,1712110148202,-342.13418829,0.00020379,2]
[321383087,1712110148222,-10534.28692559,0.00020379,2]
[321383088,1712110148243,-155.0,0.0002038,2]
[321383089,1712110148277,-4391.49754701,0.0002038,2]
[321383090,1712110148303,-500.0,0.00020381,2]
[321383091,1712110148323,-5526.81021963,0.00020381,2]
[321383092,1712110148343,-326.17207094,0.00020381,2]
[321383093,1712110148660,-156.67571045,0.00020382,2]
[321383094,1712110148684,-235.89021336,0.00020382,2]
[321383095,1712110148705,-4666.67592701,0.00020384,2]
[321383096,1712110148726,-36.64442933,0.00020796,2]
[321383097,1712110150297,-619.63247797,0.00020275,2]
[321383098,1712110150318,-87.71453442,0.00020796,2]
[321383099,1712110158138,-156.67571045,0.00020275,2]
[321383100,1712110158160,-8.82046633,0.00020796,2]
[321383122,1712110232030,-17.81056992,0.00020796,2]
[321383124,1712110232040,-300.0,0.00021674,2]
[321383127,1712110232060,-970.32,0.00021796,2]
[321383129,1712110232072,-155.0,0.00021883,2]
[321383131,1712110232082,-304.19719016,0.00021883,2]
[321383133,1712110232097,-4149.71899983,0.00021884,2]
[321383134,1712110232107,-648.74,0.00022925,2]
[321383135,1712110232117,-2426.74,0.00023026,2]
[321383136,1712110232128,-153.67,0.00023241,2]
[321383137,1712110232138,-500.0,0.00023355,2]
[321383138,1712110232148,-4391.49754701,0.00023355,2]
[321383139,1712110232158,-499.99,0.00023355,2]
[321383140,1712110232169,-342.13418829,0.00023356,2]
[321383141,1712110232179,-3160.80051232,0.00023356,2]
[321383142,1712110232193,-368.36047548,0.00023356,2]
[321383143,1712110232214,-1997.64923183,0.00023356,2]
[321383144,1712110232224,-4970.33735109,0.00023357,2]
[321383145,1712110232255,-3831.762228,0.00023357,2]
[321383146,1712110232319,-623.17277901,0.00023357,2]
[321383147,1712110232379,-791.63952452,0.00023357,2]
[321383148,1712110232391,-1666.22048829,0.00023357,2]
[321383149,1712110232403,-12016.86762909,0.00023357,2]
[321383150,1712110232413,-194.4,0.00023453,2]
[321383151,1712110232424,-199.02,0.00023788,2]
[321383152,1712110232433,-225.35570234,0.00024,2]
[321383153,1712110232443,-970.32,0.0002406,2]
[321383154,1712110232453,-361.22,0.00024236,2]
[321383155,1712110232462,-19087.02191635,0.00024589,2]
[321383156,1712110232475,-5801.92708365,0.00024589,2]
[321383157,1712110232484,-23204.69716771,0.000248,2]
[321383159,1712110232494,-760.72888625,0.000248,2]
[321383199,1712110238029,-1318.84577442,0.00024789,2]
[321383201,1712110238038,-3932.31921426,0.000248,2]
[321383202,1712110238048,-384.4501885,0.000248,2]
[321383204,1712110238057,-384.45018841,0.00024807,2]
[321383206,1712110238066,-23204.69716767,0.00024811,2]
[321383208,1712110238075,-4693.0481005,0.00024811,2]
[321383209,1712110238084,-384.45018841,0.00024814,2]
[321383211,1712110238095,-384.45018841,0.00024821,2]
[321383213,1712110238105,-23204.69716767,0.00024822,2]
[321383215,1712110238114,-4693.0481005,0.00024822,2]
[321383217,1712110238124,-384.45018841,0.00024829,2]
[321383219,1712110238133,-23204.69716767,0.00024833,2]
[321383220,1712110238142,-4693.0481005,0.00024833,2]
[321383221,1712110238151,-384.45018841,0.00024836,2]
[321383223,1712110238161,-384.45018841,0.00024843,2]
[321383225,1712110238170,-23204.69716767,0.00024844,2]
[321383226,1712110238180,-4693.0481005,0.00024844,2]
[321383228,1712110238189,-384.45018841,0.0002485,2]
[321383229,1712110238198,-23204.69716767,0.00024856,2]
[321383230,1712110238207,-4693.0481005,0.00024856,2]
[321383231,1712110238216,-384.45018841,0.00024857,2]
[321383232,1712110238225,-384.45018841,0.00024864,2]
[321383233,1712110238234,-23204.69716767,0.00024867,2]
[321383234,1712110238243,-4693.0481005,0.00024867,2]
[321383235,1712110238252,-384.45018841,0.00024871,2]
[321383236,1712110238261,-23204.69716767,0.00024878,2]
[321383238,1712110238270,-4693.0481005,0.00024878,2]
[321383240,1712110238279,-384.45018841,0.00024879,2]
[321383242,1712110238289,-384.45018841,0.00024886,2]
[321383244,1712110238298,-23204.69716767,0.00024889,2]
[321383246,1712110238307,-4693.0481005,0.00024889,2]
[321383248,1712110238318,-384.45018841,0.00024893,2]
[321383250,1712110238328,-1011.12029643,0.00024898,2]
[321383252,1712110238337,-1261.13603254,0.00024898,2]
[321383255,1712110238348,-175.80091581,0.00024898,2]
[321383257,1712110238358,-155.6778293,0.00024898,2]
[321383259,1712110238367,-214.97893789,0.00024898,2]
[321383261,1712110238376,-317.1697877,0.00024898,2]
[321383263,1712110238386,-355.07792417,0.00024898,2]
[321383265,1712110238395,-246.12592559,0.00024899,2]
[321383267,1712110238404,-874.82037516,0.00024899,2]
[321383269,1712110238414,-434.709,0.000249,2]
[321383270,1712110238423,-164675.16599776,0.000249,2]
[321383272,1712110238432,-157.53536457,0.000249,2]
[321383274,1712110238444,-7500.0,0.000249,2]
[321383276,1712110238453,-23204.69716767,0.000249,2]
[321383278,1712110238463,-4693.0481005,0.000249,2]
[321383281,1712110238472,-966.51554532,0.000249,2]
[321383283,1712110238482,-8375.235323,0.000249,2]
[321383285,1712110238491,-384.45018841,0.000249,2]
[321383286,1712110238500,-5732.19235662,0.000249,2]
[321383288,1712110238510,-228.04707239,0.00024998,2]
[321383291,1712110238519,-323.60850302,0.00024998,2]
[321383292,1712110238529,-506.92609061,0.00024998,2]
[321383294,1712110238539,-183.70235559,0.00024998,2]
[321383296,1712110238548,-155.57744834,0.00024998,2]
[321383299,1712110238557,-268.04885577,0.00024998,2]
[321383300,1712110238566,-1852.62302732,0.00024998,2]
[321383303,1712110238577,-323.88503283,0.00024998,2]
[321383305,1712110238586,-275.99804877,0.00024998,2]
[321383307,1712110238598,-9894.06473021,0.00024998,2]
[321383309,1712110238607,-172.44642068,0.00024998,2]
[321383311,1712110238617,-241.06220777,0.00024998,2]
[321383313,1712110238627,-822.04647744,0.00024998,2]
[321383315,1712110238637,-277.26034811,0.00024998,2]
[321383317,1712110238647,-282.83715739,0.00024998,2]
[321383319,1712110238656,-1707.47386259,0.00024998,2]
[321383321,1712110238665,-259.27915099,0.00024998,2]
[321383323,1712110238675,-224.23271556,0.00024998,2]
[321383325,1712110238684,-266.23172992,0.00024998,2]
[321383327,1712110238694,-187.92152911,0.00024998,2]
[321383329,1712110238704,-810.96925326,0.00024998,2]
[321383331,1712110238714,-196.4989026,0.00024998,2]
[321383333,1712110238723,-191.76487413,0.00024998,2]
[321383335,1712110238733,-528.62980933,0.00024998,2]
[321383337,1712110238743,-1043.74450397,0.00024998,2]
[321383339,1712110238752,-1250.4816731,0.00024998,2]
[321383341,1712110238763,-662.53275288,0.00024998,2]
[321383344,1712110238774,-648.44153641,0.00024998,2]
[321383346,1712110238784,-204.02973384,0.00024998,2]
[321383348,1712110238795,-212.8531606,0.00024998,2]
[321383350,1712110238805,-343.46181462,0.00024998,2]
[321383352,1712110238814,-155.40295107,0.00024998,2]
[321383354,1712110238823,-1932.57853902,0.00024998,2]
[321383356,1712110238833,-155.89867104,0.00024998,2]
[321383358,1712110238842,-3551.3462595,0.00024998,2]
[321383360,1712110238853,-274.60784755,0.00024999,2]
[321383362,1712110238862,-14298.76946184,0.00024999,2]
[321383364,1712110238872,-1795.76305229,0.00024999,2]
[321383366,1712110238881,-7206.58535054,0.00024999,2]
[321383368,1712110238891,-102639.5980949,0.00024999,2]
[321383370,1712110238901,-300.0,0.00024999,2]
[321383372,1712110238910,-300.0,0.00024999,2]
[321383374,1712110238919,-300.0,0.00024999,2]
[321383376,1712110238928,-300.0,0.00024999,2]
[321383378,1712110238938,-300.0,0.00024999,2]
[321383380,1712110238947,-300.0,0.00024999,2]
[321383382,1712110238956,-300.0,0.00024999,2]
[321383384,1712110238965,-300.0,0.00024999,2]
[321383386,1712110238975,-300.0,0.00024999,2]
[321383388,1712110238984,-300.0,0.00024999,2]
[321383390,1712110238993,-300.0,0.00024999,2]
[321383391,1712110239002,-300.0,0.00024999,2]
[321383393,1712110239010,-300.0,0.00024999,2]
[321383395,1712110239020,-300.0,0.00024999,2]
[321383397,1712110239029,-300.0,0.00024999,2]
[321383399,1712110239038,-304.15966376,0.00024999,2]
[321383401,1712110239048,-7577465.10546507,0.00025,2]
[321383403,1712110239057,-439.07785576,0.00025,2]
[321383405,1712110239066,-288.27931853,0.00025,2]
[321383407,1712110239074,-214.86790518,0.00025,2]
[321383409,1712110239083,-297.03464584,0.00025,2]
[321383411,1712110239093,-11211.2022579,0.00025,2]
[321383413,1712110239102,-2614.71571466,0.00025,2]
[321383415,1712110239112,-14873128.07784574,0.00025,2]
[321383418,1712110239121,-2841.85890817,0.00025,2]
[321383421,1712110239130,-377.02,0.00025,2]
[321383423,1712110239139,-1777.2,0.00025,2]
[321383425,1712110239149,-2683.87032758,0.00025,2]
[321383427,1712110239158,-151.0,0.00025,2]
[321383429,1712110239167,-233.52468269,0.00025,2]
[321383431,1712110239176,-2030.62812396,0.00025,2]
[321383433,1712110239185,-1013.8,0.00025,2]
[321383435,1712110239194,-127607.48221531,0.00025,2]
[321383436,1712110239203,-3118.68475468,0.000251,2]
[321383437,1712110239211,-648.74,0.00025665,2]
[321383438,1712110239221,-162.96,0.00025675,2]
[321383440,1712110239230,-178.98,0.00025933,2]
[321383442,1712110239239,-162.34,0.00026303,2]
[321383444,1712110239249,-970.32,0.00026324,2]
[321383446,1712110239258,-10951.0,0.00026395,3]
[321383448,1712110239267,-800.0,0.00026784,2]
[321383450,1712110239277,-168.25565774,0.00027,2]
[321383452,1712110239286,-227190.3018522,0.00027,2]
[321383454,1712110239295,-600.0,0.00027,3]
[321383456,1712110239304,-167.0,0.0002721,2]
[321383458,1712110239313,-384.0,0.000273,2]
[321383460,1712110239323,-260.73643222,0.0002736,2]
[321383462,1712110239333,-222.63620183,0.0002736,2]
[321383464,1712110239342,-2636.36098968,0.0002736,2]
[321383466,1712110239352,-305.95151618,0.0002736,2]
[321383468,1712110239361,-1016.49046242,0.00027396,2]
[321383470,1712110239370,-250.0,0.00027397,2]
[321383471,1712110239381,-19014.63,0.00027397,2]
[321383472,1712110239587,-79657.27,0.00027397,2]
[321383473,1712110239598,-2128.0,0.000274,2]
[321383474,1712110239607,-1871.53,0.000274,2]
[321383475,1712110239617,-1871.53,0.000274,2]
[321383476,1712110239626,-1871.53,0.000274,2]
[321383477,1712110239636,-1871.53,0.000274,2]
[321383478,1712110239646,-1871.53,0.000274,2]
[321383479,1712110239656,-465.09125276,0.000275,2]
[321383480,1712110239665,-162.34,0.00027699,2]
[321383481,1712110239675,-1366.37557177,0.00028,2]
[321383482,1712110239685,-496.59051175,0.00028,2]
[321383483,1712110239696,-1000.0,0.00028071,2]
[321383484,1712110239705,-167.0,0.00028108,2]
[321383485,1712110239715,-157.53536455,0.00028376,2]
[321383486,1712110239724,-648.74,0.00028405,2]
[321383487,1712110239734,-970.32,0.00028588,2]
[321383488,1712110239744,-560.58443518,0.00029,2]
[321383489,1712110239754,-650.0,0.00029,3]
[321383490,1712110239764,-1013.8,0.00029,2]
[321383491,1712110239773,-167.0,0.00029007,2]
[321383492,1712110239788,-500.0,0.00029048,2]
[321383493,1712110239797,-162.34,0.00029094,2]
[321383495,1712110239807,-1777.2,0.000293,2]
[321383496,1712110239816,-293.95752119,0.000295,3]
[321383497,1712110239827,-155.0,0.00029589,2]
[321383498,1712110239837,-200.0,0.00029589,2]
[321383499,1712110239848,-165.51689983,0.00029699,2]
[321383500,1712110239860,-78656.10212082,0.0002975,2]
[321383501,1712110239870,-377.02,0.000298,2]
[321383502,1712110239880,-72262.06216445,0.000299,2]
[321383503,1712110239890,-167.0,0.00029905,2]
[321383504,1712110239901,-2639.48076778,0.0002999,2]
[321383505,1712110239910,-4892.80622135,0.00029997,2]
[321383506,1712110239920,-405.14841286,0.0003,4]
[321383508,1712110239929,-155.0,0.0003,4]
[321383509,1712110239938,-155.0,0.0003,2]
[321383510,1712110239948,-778.63203773,0.0003,4]
[321383511,1712110239957,-19289.64853053,0.0003,4]
[321383512,1712110239967,-3205.84389542,0.0003,2]
[321383513,1712110239976,-490357.81804502,0.0003,4]
[321383514,1712110239986,-300502.99213448,0.0003,4]
[321383515,1712110239995,-1506.56644833,0.0003,2]
[321383516,1712110240005,-762.6179873,0.0003,2]
[321383517,1712110240014,-374.35409843,0.0003,2]
[321383518,1712110240023,-346.53704716,0.0003,2]
[321383519,1712110240033,-9371.07318076,0.0003,2]
[321383520,1712110240042,-315.59660847,0.0003,2]
[321383521,1712110240052,-1698.50565905,0.0003,2]
[321383522,1712110240061,-206.0,0.0003,2]
[321383523,1712110240071,-8295.79,0.00030137,2]
[321383524,1712110240080,-162.34,0.00030489,2]
[321383525,1712110240091,-167.0,0.00030803,2]
[321383526,1712110240103,-970.32,0.00030852,2]
[321383527,1712110240112,-700.0,0.00031,3]
[321383528,1712110240120,-500.0,0.00031311,2]
[321383529,1712110240130,-180.0,0.00031342,2]
[321383530,1712110240139,-1000.0,0.0003158,2]
[321383531,1712110240149,-226.46,0.00031644,2]
[321383532,1712110240158,-167.0,0.00031701,2]
[321383533,1712110240168,-10000.0,0.00031715,2]
[321383534,1712110240177,-1013.8,0.000318,2]
[321383535,1712110240187,-157.53536455,0.00031852,2]
[321383536,1712110240196,-1206.0,0.00031858,2]
[321383537,1712110240205,-5696.0,0.00031858,2]
[321383538,1712110240215,-2491.343,0.00031858,2]
[321383539,1712110240225,-4784.0,0.00031858,2]
[321383540,1712110240234,-43082.0,0.00031858,2]
[321383541,1712110240242,-247.995,0.00031858,2]
[321383542,1712110240252,-1190.308,0.00031858,2]
[321383543,1712110240261,-1059.885,0.00031858,2]
[321383544,1712110240271,-162.34,0.00031885,2]
[321383545,1712110240282,-2750.4677485,0.000328,4]
[321383546,1712110240292,-3525.83438259,0.000328,2]
[321383547,1712110240301,-1777.2,0.000328,2]
[321383548,1712110240311,-1000.0,0.00032876,2]
[321383549,1712110240320,-1038.38350532,0.00032876,2]
[321383550,1712110240330,-2183.34,0.00032877,2]
[321383551,1712110240341,-10000.0,0.00032877,2]
[321383552,1712110240353,-150.0,0.00032877,2]
[321383553,1712110240363,-8659.51,0.00032877,2]
[321383554,1712110240372,-2119.25450417,0.00033,4]
[321383555,1712110240383,-24292.46272296,0.00033,2]
[321383556,1712110240392,-971.61870166,0.00033,2]
[321383557,1712110240402,-750.0,0.00033,3]
[321383558,1712110240411,-206.0,0.00033,2]
[321383559,1712110240420,-970.32,0.00033115,2]
[321383560,1712110240429,-1135.27479761,0.000335,2]
[321383561,1712110240439,-500.0,0.00033575,10]
[321383562,1712110240449,-150.0,0.00033742,2]
[321383563,1712110240459,-1237.0,0.00033806,5]
[321383564,1712110240468,-19999.99,0.00033844,2]
[321383565,1712110240478,-19079.43,0.00033844,2]
[321383566,1712110240487,-1250.54,0.00033844,2]
[321383567,1712110240497,-380.0,0.00033998,2]
[321383568,1712110240506,-88342.92618987,0.00034,15]
[321383569,1712110240516,-377.02,0.00034,2]
[321383570,1712110240526,-380.0,0.00034025,2]
[321383571,1712110240536,-278.3,0.00034025,2]
[321383572,1712110240545,-150.0,0.00034607,2]
[321383573,1712110240555,-9053.58976532,0.000348,4]
[321383574,1712110240565,-1196.0,0.00034858,2]
[321383575,1712110240574,-5696.0,0.00034858,2]
[321383576,1712110240582,-2456.0,0.00034858,2]
[321383577,1712110240592,-4784.0,0.00034858,2]
[321383578,1712110240603,-43082.0,0.00034858,2]
[321383579,1712110240613,-150.0,0.00034858,2]
[321383580,1712110240623,-1179.0,0.00034858,2]
[321383581,1712110240632,-14956.22402613,0.0003499,2]
[321383582,1712110240642,-1281.21723531,0.00035,4]
[321383583,1712110240652,-800.0,0.00035,3]
[321383584,1712110240661,-1000.0,0.00035089,2]
[321383585,1712110240671,-2427.0,0.00035275,2]
[321383586,1712110240679,-1397.822,0.00035275,2]
[321383587,1712110240688,-964.0,0.00035275,2]
[321383588,1712110240698,-459.0,0.00035275,2]
[321383589,1712110240708,-1256.0,0.00035275,2]
[321383590,1712110240718,-286.823,0.00035275,2]
[321383591,1712110240729,-779.001,0.00035275,2]
[321383592,1712110240740,-525.839,0.00035275,2]
[321383593,1712110240751,-1283.375,0.00035275,2]
[321383594,1712110240760,-812.289,0.00035275,2]
[321383595,1712110240771,-282.045,0.00035275,2]
[321383596,1712110240784,-434.0,0.00035275,2]
[321383597,1712110240793,-606.0,0.00035275,2]
[321383598,1712110240803,-1478.885,0.00035275,2]
[321383599,1712110240813,-3017.907,0.00035275,2]
[321383600,1712110240823,-206.747,0.00035275,2]
[321383601,1712110240833,-1140.0,0.00035275,2]
[321383602,1712110240842,-217.444,0.00035275,2]
[321383603,1712110240853,-194.0,0.00035275,2]
[321383604,1712110240861,-449.619,0.00035275,2]
[321383605,1712110240871,-1631.0,0.00035275,2]
[321383606,1712110240881,-151.027,0.00035275,2]
[321383607,1712110240891,-2430.0,0.00035275,2]
[321383608,1712110240901,-191.753,0.00035275,2]
[321383609,1712110240911,-206.0,0.00035275,2]
[321383610,1712110240921,-215.0,0.00035275,2]
[321383611,1712110240930,-157.53536455,0.00035328,2]
[321383612,1712110240939,-970.32,0.00035379,2]
[321383613,1712110240949,-361.22,0.00035469,2]
[321383614,1712110240958,-150.0,0.00035472,2]
[321383615,1712110240968,-1013.8,0.000357,2]
[321383616,1712110240978,-500.0,0.00035838,10]
[321383617,1712110240987,-226.46,0.00036164,2]
[321383618,1712110240997,-150.0,0.00036337,2]
[321383619,1712110241006,-9785.6124427,0.00036997,2]
[321383620,1712110241015,-674613.25398762,0.00037,4]
[321383621,1712110241025,-301373.79970851,0.00037,2]
[321383622,1712110241034,-1777.2,0.00037,7]
[321383623,1712110241044,-850.0,0.00037,3]
[321383624,1712110241054,-151.0,0.00037,7]
[321383625,1712110241063,-151.0,0.00037,7]
[321383626,1712110241073,-150.0,0.00037203,2]
[321383627,1712110241082,-4085.58876014,0.0003759,2]
[321383628,1712110241092,-970.32,0.00037643,2]
[321383629,1712110241103,-163.78144625,0.000378,2]
[321383630,1712110241113,-156.48,0.00037808,2]
[321383631,1712110241123,-163.79,0.00037808,2]
[321383632,1712110241132,-1196.0,0.00037858,2]
[321383633,1712110241143,-5696.0,0.00037858,2]
[321383634,1712110241153,-2456.0,0.00037858,2]
[321383635,1712110241162,-2166.712,0.00037858,2]
[321383636,1712110241172,-43082.0,0.00037858,2]
[321383637,1712110241182,-150.0,0.00037858,2]
[321383638,1712110241191,-156.58470025,0.00038,4]
[321383639,1712110241201,-1063.9,0.00038027,15]
[321383640,1712110241210,-150.0,0.00038068,2]
[321383641,1712110241220,-200.0,0.00038102,10]
[321383642,1712110241229,-800.0,0.00038102,10]
[321383643,1712110241238,-500.0,0.00038102,10]
[321383644,1712110241248,-2427.0,0.00038275,2]
[321383645,1712110241258,-1385.0,0.00038275,2]
[321383646,1712110241267,-964.0,0.00038275,2]
[321383647,1712110241277,-459.0,0.00038275,2]
[321383648,1712110241287,-263.619,0.00038275,2]
[321383649,1712110241296,-1270.0,0.00038275,2]
[321383650,1712110241306,-804.0,0.00038275,2]
[321383651,1712110241315,-279.0,0.00038275,2]
[321383652,1712110241324,-434.0,0.00038275,2]
[321383653,1712110241334,-606.0,0.00038275,2]
[321383654,1712110241345,-1466.0,0.00038275,2]
[321383655,1712110241355,-2989.0,0.00038275,2]
[321383656,1712110241365,-150.0,0.00038275,2]
[321383657,1712110241374,-150.0,0.00038275,2]
[321383658,1712110241384,-1140.0,0.00038275,2]
[321383659,1712110241393,-397.0,0.00038275,2]
[321383660,1712110241403,-1631.0,0.00038275,2]
[321383661,1712110241413,-150.0,0.00038275,2]
[321383662,1712110241422,-2430.0,0.00038275,2]
[321383663,1712110241431,-150.0,0.00038275,2]
[321383664,1712110241441,-206.0,0.00038275,2]
[321383665,1712110241450,-214.0,0.00038275,2]
[321383666,1712110241459,-377.02,0.000383,2]
[321383667,1712110241469,-46009.72612893,0.0003844,4]
[321383668,1712110241478,-1000.0,0.00038598,2]
[321383669,1712110241487,-274.32618057,0.000387,4]
[321383670,1712110241497,-1194.2440266,0.00038765,2]
[321383671,1712110241506,-157.53536455,0.00038803,2]
[321383672,1712110241515,-496.06917326,0.0003888,2]
[321383673,1712110241525,-4064.11230153,0.000389,15]
[321383674,1712110241534,-1013.8,0.000389,7]
[321383675,1712110241543,-150.0,0.00038933,2]
[321383676,1712110241552,-180474.88146872,0.0003897,2]
[321383677,1712110241562,-1157.67622674,0.00039,2]
[321383678,1712110241571,-1333.14185134,0.00039,120]
[321383679,1712110241580,-6250.72061486,0.00039,2]
[321383680,1712110241589,-900.0,0.00039,3]
[321383681,1712110241600,-1777.2,0.000391,7]
[321383682,1712110241609,-1032.11449923,0.00039139,30]
[321383683,1712110241619,-1000.0,0.00039326,30]
[321383684,1712110241629,-23150.20917807,0.000397,3]
[321383685,1712110241638,-168.13795655,0.0003972,5]
[321383686,1712110241647,-150.0,0.00039798,2]
[321383687,1712110241656,-9755.78570303,0.00039847,2]
[321383688,1712110241666,-152.13336314,0.000399,48]
[321383689,1712110241675,-152.13336314,0.000399,48]
[321383690,1712110241685,-152.13336314,0.000399,48]
[321383691,1712110241694,-152.13336314,0.000399,48]
[321383692,1712110241703,-152.13336314,0.000399,48]
[321383693,1712110241713,-152.13336314,0.000399,48]
[321383694,1712110241722,-970.32,0.00039907,2]
[321383695,1712110241731,-178.98,0.00039974,2]
[321383696,1712110241740,-192.70693193,0.0004,2]
[321383697,1712110241750,-22098.16965284,0.0004,4]
[321383698,1712110241759,-5757.17728566,0.0004,4]
[321383699,1712110241773,-486.21419403,0.0004,4]
[321383700,1712110241782,-463.45136824,0.0004,15]
[321383701,1712110241792,-13467.92201367,0.0004,12]
[321383702,1712110241802,-978.57802487,0.0004,30]
[321383703,1712110241813,-48317.62216482,0.0004,10]
[321383704,1712110241822,-10965.29314238,0.0004,7]
[321383705,1712110241832,-13568.32340244,0.0004,2]
[321383706,1712110241842,-111967.27269127,0.0004,2]
[321383707,1712110241852,-270.55234812,0.0004,30]
[321383708,1712110241863,-2454.79932557,0.0004,2]
[321383709,1712110241873,-225.40659682,0.0004,2]
[321383710,1712110241882,-225.40659682,0.0004,2]
[321383711,1712110241893,-225.40659682,0.0004,2]
[321383712,1712110241902,-225.40659682,0.0004,2]
[321383713,1712110241911,-225.40659682,0.0004,2]
[321383714,1712110241921,-225.40659682,0.0004,2]
[321383715,1712110241930,-225.40659682,0.0004,2]
[321383716,1712110241939,-225.40659682,0.0004,2]
[321383717,1712110241949,-225.40659682,0.0004,2]
[321383718,1712110241958,-225.40659682,0.0004,2]
[321383719,1712110241967,-225.40659682,0.0004,2]
[321383720,1712110241977,-225.40659682,0.0004,2]
[321383721,1712110241986,-225.40659682,0.0004,2]
[321383722,1712110241996,-225.40659682,0.0004,2]
[321383723,1712110242005,-225.40659682,0.0004,2]
[321383724,1712110242015,-225.40659682,0.0004,2]
[321383725,1712110242025,-225.40659682,0.0004,2]
[321383726,1712110242034,-225.40659682,0.0004,2]
[321383727,1712110242044,-225.40659682,0.0004,2]
[321383728,1712110242053,-225.40659682,0.0004,2]
[321383729,1712110242062,-225.40659682,0.0004,2]
[321383730,1712110242071,-225.40659682,0.0004,2]
[321383731,1712110242081,-225.40659682,0.0004,2]
[321383732,1712110242090,-225.40659682,0.0004,2]
[321383733,1712110242101,-225.40659682,0.0004,2]
[321383734,1712110242110,-225.40659682,0.0004,2]
[321383735,1712110242119,-225.40659682,0.0004,2]
[321383736,1712110242128,-225.40659682,0.0004,2]
[321383737,1712110242137,-225.40659682,0.0004,2]
[321383738,1712110242146,-225.40659682,0.0004,2]
[321383739,1712110242156,-835.82663998,0.0004,2]
[321383740,1712110242165,-835.82663998,0.0004,2]
[321383741,1712110242175,-835.82663998,0.0004,2]
[321383742,1712110242185,-835.82663998,0.0004,2]
[321383743,1712110242194,-835.82663998,0.0004,2]
[321383744,1712110242204,-835.82663998,0.0004,2]
[321383745,1712110242214,-835.82663998,0.0004,2]
[321383746,1712110242223,-835.82663998,0.0004,2]
[321383747,1712110242233,-835.82663998,0.0004,2]
[321383748,1712110242242,-835.82663998,0.0004,2]
[321383749,1712110242252,-835.82663998,0.0004,2]
[321383750,1712110242261,-835.82663998,0.0004,2]
[321383751,1712110242271,-835.82663998,0.0004,2]
[321383752,1712110242281,-835.82663998,0.0004,2]
[321383753,1712110242290,-835.82663998,0.0004,2]
[321383754,1712110242300,-835.82663998,0.0004,2]
[321383755,1712110242310,-835.82663998,0.0004,2]
[321383756,1712110242319,-835.82663998,0.0004,2]
[321383757,1712110242329,-835.82663998,0.0004,2]
[321383758,1712110242339,-835.82663998,0.0004,2]
[321383759,1712110242350,-835.82663998,0.0004,2]
[321383760,1712110242360,-835.82663998,0.0004,2]
[321383761,1712110242370,-835.82663998,0.0004,2]
[321383762,1712110242379,-835.82663998,0.0004,2]